[Event "Live Chess"]
[Site "Chess.com"]
[Date "2024.06.02"]
[Round "-"]
[White "TheSmoulderingMaster"]
[Black "DylanMeyer1"]
[Result "1-0"]
[WhiteElo "1776"]
[BlackElo "1708"]
[TimeControl "300"]
[EndTime "6:58:48 PDT"]
[Termination "TheSmoulderingMaster won by checkmate"]

1. e4 {[%clk 0:04:56.1]} 1... d5 {[%clk 0:04:59.9]} 2. exd5 {[%clk 0:04:54.9]}
2... Qxd5 {[%clk 0:04:59.8]} 3. Nc3 {[%clk 0:04:53.9]} 3... Qd6 {[%clk
0:04:59.7]} 4. d4 {[%clk 0:04:51.5]} 4... a6 {[%clk 0:04:59.3]} 5. Nf3 {[%clk
0:04:50.2]} 5... Nf6 {[%clk 0:04:58.8]} 6. Bd3 {[%clk 0:04:48.6]} 6... e6 {[%clk
0:04:58]} 7. Bg5 {[%clk 0:04:46.6]} 7... Be7 {[%clk 0:04:57.3]} 8. O-O {[%clk
0:04:45.7]} 8... O-O {[%clk 0:04:56.3]} 9. Re1 {[%clk 0:04:44]} 9... b5 {[%clk
0:04:55.4]} 10. Ne5 {[%clk 0:04:36.2]} 10... Bb7 {[%clk 0:04:54.3]} 11. Bf4
{[%clk 0:04:33.5]} 11... Qb6 {[%clk 0:04:52.9]} 12. a3 {[%clk 0:04:26.8]} 12...
c5 {[%clk 0:04:38.2]} 13. Bg5 {[%clk 0:04:19.6]} 13... cxd4 {[%clk 0:04:24.4]}
14. Ne2 {[%clk 0:04:16.6]} 14... Rd8 {[%clk 0:04:17.6]} 15. Nf4 {[%clk 0:04:14]}
15... Nbd7 {[%clk 0:04:16.5]} 16. Nxf7 {[%clk 0:04:03.8]} 16... Kxf7 {[%clk
0:04:08.4]} 17. Rxe6 {[%clk 0:04:02.7]} 17... Qxe6 {[%clk 0:03:47.2]} 18. Nxe6
{[%clk 0:04:00.9]} 18... Kxe6 {[%clk 0:03:46.5]} 19. Qe2+ {[%clk 0:03:58]} 19...
Kf7 {[%clk 0:03:45.3]} 20. a4 {[%clk 0:03:55.5]} 20... b4 {[%clk 0:03:37.3]} 21.
Bc4+ {[%clk 0:03:53.9]} 21... Kf8 {[%clk 0:03:36.3]} 22. Qe6 {[%clk 0:03:52.1]}
22... Bd5 {[%clk 0:03:24.5]} 23. Bxd5 {[%clk 0:03:47.5]} 23... Nxd5 {[%clk
0:03:23.6]} 24. Qxd5 {[%clk 0:03:39.8]} 24... Nf6 {[%clk 0:03:21.4]} 25. Qe6
{[%clk 0:03:36.4]} 25... Rd6 {[%clk 0:02:57.3]} 26. Qe5 {[%clk 0:03:31.3]} 26...
Rd5 {[%clk 0:02:30.9]} 27. Qg3 {[%clk 0:03:24.1]} 27... a5 {[%clk 0:02:19.8]}
28. Bxf6 {[%clk 0:03:21.9]} 28... Bxf6 {[%clk 0:02:17.2]} 29. Qf3 {[%clk
0:03:20.8]} 29... Re5 {[%clk 0:02:13.7]} 30. Qxa8+ {[%clk 0:03:18.3]} 30... Kf7
{[%clk 0:02:12]} 31. Qb7+ {[%clk 0:03:16.6]} 31... Kg6 {[%clk 0:02:11.9]} 32. h3
{[%clk 0:03:09.4]} 32... h5 {[%clk 0:02:10.5]} 33. Rd1 {[%clk 0:03:03.4]} 33...
Kh6 {[%clk 0:02:03.6]} 34. Qf3 {[%clk 0:02:51.9]} 34... Kg6 {[%clk 0:01:49.2]}
35. Kh2 {[%clk 0:02:38.2]} 35... Rf5 {[%clk 0:01:46]} 36. Qe4 {[%clk 0:02:33.3]}
36... Kg5 {[%clk 0:01:45.5]} 37. Rd3 {[%clk 0:02:29.1]} 37... Rxf2 {[%clk
0:01:29.8]} 38. Rg3+ {[%clk 0:02:25.7]} 38... Kh6 {[%clk 0:01:28.1]} 39. Qg6#
{[%clk 0:02:23.1]} 1-0

[Event "Live Chess"]
[Site "Chess.com"]
[Date "2024.06.02"]
[Round "-"]
[White "wadsy27"]
[Black "KeithArkell"]
[Result "1-0"]
[WhiteElo "2593"]
[BlackElo "2424"]
[TimeControl "300"]
[EndTime "6:58:53 PDT"]
[Termination "wadsy27 won by resignation"]

1. c4 {[%clk 0:04:56.6]} 1... c5 {[%clk 0:04:58.4]} 2. g3 {[%clk 0:04:55.6]}
2... Nc6 {[%clk 0:04:57.5]} 3. Bg2 {[%clk 0:04:55.2]} 3... g6 {[%clk 0:04:57.1]}
4. Nc3 {[%clk 0:04:54.8]} 4... Bg7 {[%clk 0:04:56.7]} 5. Nf3 {[%clk 0:04:54.5]}
5... Nf6 {[%clk 0:04:56]} 6. d4 {[%clk 0:04:54.2]} 6... cxd4 {[%clk 0:04:55]} 7.
Nxd4 {[%clk 0:04:54.1]} 7... Nxd4 {[%clk 0:04:54.5]} 8. Qxd4 {[%clk 0:04:53.5]}
8... d6 {[%clk 0:04:54.1]} 9. O-O {[%clk 0:04:52.9]} 9... O-O {[%clk 0:04:53.3]}
10. Qd3 {[%clk 0:04:52.3]} 10... Nd7 {[%clk 0:04:51.7]} 11. b3 {[%clk
0:04:50.1]} 11... Nc5 {[%clk 0:04:50.9]} 12. Qe3 {[%clk 0:04:44.8]} 12... Rb8
{[%clk 0:04:49.7]} 13. Bb2 {[%clk 0:04:38.1]} 13... b6 {[%clk 0:04:48.9]} 14.
Rfd1 {[%clk 0:04:34.9]} 14... Bb7 {[%clk 0:04:47.4]} 15. Rac1 {[%clk 0:04:34.4]}
15... Bxg2 {[%clk 0:04:44.5]} 16. Kxg2 {[%clk 0:04:34.3]} 16... Qd7 {[%clk
0:04:40.7]} 17. Rc2 {[%clk 0:04:31.2]} 17... Qb7+ {[%clk 0:04:38.8]} 18. Qf3
{[%clk 0:04:27]} 18... Qxf3+ {[%clk 0:04:37.4]} 19. Kxf3 {[%clk 0:04:26.5]}
19... Rfc8 {[%clk 0:04:35.7]} 20. Nd5 {[%clk 0:04:24.2]} 20... Bxb2 {[%clk
0:04:34.8]} 21. Nxe7+ {[%clk 0:04:16.1]} 21... Kf8 {[%clk 0:04:33.9]} 22. Nxc8
{[%clk 0:04:15.2]} 22... Be5 {[%clk 0:04:33.2]} 23. Nxa7 {[%clk 0:04:09.2]} 1-0

[Event "Live Chess"]
[Site "Chess.com"]
[Date "2024.06.02"]
[Round "-"]
[White "Plimsol"]
[Black "silunn"]
[Result "1-0"]
[WhiteElo "2355"]
[BlackElo "2124"]
[TimeControl "300"]
[EndTime "6:59:09 PDT"]
[Termination "Plimsol won by resignation"]

1. e4 {[%clk 0:04:58]} 1... e6 {[%clk 0:04:59.9]} 2. d4 {[%clk 0:04:56.5]} 2...
d5 {[%clk 0:04:59.7]} 3. Nc3 {[%clk 0:04:56.1]} 3... Bb4 {[%clk 0:04:57.9]} 4.
e5 {[%clk 0:04:54.9]} 4... c5 {[%clk 0:04:57.5]} 5. a3 {[%clk 0:04:54.3]} 5...
Bxc3+ {[%clk 0:04:56.6]} 6. bxc3 {[%clk 0:04:54.2]} 6... Ne7 {[%clk 0:04:55.8]}
7. Nf3 {[%clk 0:04:52.8]} 7... Bd7 {[%clk 0:04:51.3]} 8. a4 {[%clk 0:04:51.1]}
8... Nbc6 {[%clk 0:04:47]} 9. Bd3 {[%clk 0:04:48]} 9... Na5 {[%clk 0:04:41.5]}
10. O-O {[%clk 0:04:45.5]} 10... Rc8 {[%clk 0:04:37.8]} 11. Re1 {[%clk
0:04:44.1]} 11... Nf5 {[%clk 0:04:12.8]} 12. Bg5 {[%clk 0:04:33.3]} 12... Qc7
{[%clk 0:03:42.1]} 13. g4 {[%clk 0:04:31.6]} 13... c4 {[%clk 0:03:26.7]} 14. Bf1
{[%clk 0:04:26.8]} 14... Nh6 {[%clk 0:03:23.3]} 15. h3 {[%clk 0:04:17.8]} 15...
Ng8 {[%clk 0:03:17.2]} 16. Qc1 {[%clk 0:04:04.7]} 16... h5 {[%clk 0:03:15.2]}
17. Qa3 {[%clk 0:04:02.1]} 17... hxg4 {[%clk 0:03:08.9]} 18. hxg4 {[%clk
0:04:01.3]} 18... f6 {[%clk 0:03:05.6]} 19. Bf4 {[%clk 0:03:58.7]} 19... Kf7
{[%clk 0:02:55.8]} 20. Bg3 {[%clk 0:03:55]} 20... Qd8 {[%clk 0:02:48.5]} 21. Bg2
{[%clk 0:03:47.6]} 21... b6 {[%clk 0:02:44]} 22. exf6 {[%clk 0:03:40.9]} 22...
gxf6 {[%clk 0:02:38.1]} 23. g5 {[%clk 0:03:40.1]} 23... Nc6 {[%clk 0:02:29.2]}
24. Qc1 {[%clk 0:03:30.7]} 24... f5 {[%clk 0:02:00.4]} 25. Qf4 {[%clk
0:03:18.3]} 25... Nge7 {[%clk 0:01:57.5]} 26. Qd6 {[%clk 0:03:00.4]} 26... Ng6
{[%clk 0:01:46.6]} 27. Bf4 {[%clk 0:02:39.2]} 27... Na5 {[%clk 0:01:31.6]} 28.
Ne5+ {[%clk 0:02:19.9]} 28... Nxe5 {[%clk 0:01:28.9]} 29. Qxe5 {[%clk
0:02:19.1]} 29... Nc6 {[%clk 0:01:21.4]} 30. Qe3 {[%clk 0:02:16.9]} 30... Ne7
{[%clk 0:01:17]} 31. Be5 {[%clk 0:02:09.1]} 31... Rh7 {[%clk 0:01:07.1]} 32. Bf6
{[%clk 0:02:05.3]} 32... Qc7 {[%clk 0:01:05.1]} 33. f4 {[%clk 0:02:01.5]} 33...
Ng6 {[%clk 0:01:03.7]} 34. Be5 {[%clk 0:01:55.2]} 34... Qd8 {[%clk 0:01:02.3]}
35. a5 {[%clk 0:01:52.3]} 35... b5 {[%clk 0:00:57.3]} 36. a6 {[%clk 0:01:51.7]}
36... Rh5 {[%clk 0:00:49.9]} 37. Kf2 {[%clk 0:01:49.7]} 37... Nxe5 {[%clk
0:00:46.4]} 38. Qxe5 {[%clk 0:01:47.7]} 38... Qh8 {[%clk 0:00:45.5]} 39. Qd6
{[%clk 0:01:30.3]} 39... Rh2 {[%clk 0:00:41.7]} 40. Qxd7+ {[%clk 0:01:27.9]}
40... Kg6 {[%clk 0:00:41.2]} 41. Rxe6+ {[%clk 0:01:26.5]} 41... Kh5 {[%clk
0:00:40.6]} 42. Kg3 {[%clk 0:01:22.3]} 42... Rxg2+ {[%clk 0:00:37.2]} 43. Kxg2
{[%clk 0:01:21.4]} 43... Kg4 {[%clk 0:00:36.8]} 44. Rh6 {[%clk 0:01:19.4]} 44...
Qe8 {[%clk 0:00:34.8]} 45. Qxe8 {[%clk 0:01:15.7]} 45... Rxe8 {[%clk 0:00:34.7]}
46. Kf2 {[%clk 0:01:14.6]} 1-0

[Event "Live Chess"]
[Site "Chess.com"]
[Date "2024.06.02"]
[Round "-"]
[White "McFim"]
[Black "gmnorfolk"]
[Result "0-1"]
[WhiteElo "1791"]
[BlackElo "2153"]
[TimeControl "300"]
[EndTime "6:59:13 PDT"]
[Termination "gmnorfolk won by resignation"]

1. e4 {[%clk 0:04:57.8]} 1... c5 {[%clk 0:04:59.2]} 2. Nf3 {[%clk 0:04:56.5]}
2... d6 {[%clk 0:04:58.7]} 3. Bb5+ {[%clk 0:04:55.7]} 3... Nd7 {[%clk
0:04:55.5]} 4. O-O {[%clk 0:04:54.4]} 4... Nf6 {[%clk 0:04:53.7]} 5. d3 {[%clk
0:04:52.9]} 5... g6 {[%clk 0:04:51.6]} 6. Nc3 {[%clk 0:04:51.7]} 6... Bg7 {[%clk
0:04:50.7]} 7. h3 {[%clk 0:04:51]} 7... O-O {[%clk 0:04:49.6]} 8. Bxd7 {[%clk
0:04:47.6]} 8... Bxd7 {[%clk 0:04:48.1]} 9. Bg5 {[%clk 0:04:43.5]} 9... h6
{[%clk 0:04:45.9]} 10. Bd2 {[%clk 0:04:42.2]} 10... e5 {[%clk 0:04:39.8]} 11. b3
{[%clk 0:04:39.3]} 11... Bc6 {[%clk 0:04:37.4]} 12. Qc1 {[%clk 0:04:37.7]} 12...
Kh7 {[%clk 0:04:35.1]} 13. a4 {[%clk 0:04:36.3]} 13... b6 {[%clk 0:04:33.3]} 14.
Nb5 {[%clk 0:04:31.1]} 14... a6 {[%clk 0:04:30.4]} 15. Nc3 {[%clk 0:04:29.5]}
15... Re8 {[%clk 0:04:26]} 16. Nh2 {[%clk 0:04:26.5]} 16... d5 {[%clk
0:04:24.4]} 17. exd5 {[%clk 0:04:25.1]} 17... Nxd5 {[%clk 0:04:21.9]} 18. f3
{[%clk 0:04:21.1]} 18... Nf4 {[%clk 0:04:16.7]} 19. Rb1 {[%clk 0:04:07.1]} 19...
Qg5 {[%clk 0:04:09.6]} 20. Bxf4 {[%clk 0:03:46.7]} 20... exf4 {[%clk 0:04:07.2]}
21. Ne4 {[%clk 0:03:45.3]} 21... Bd4+ {[%clk 0:04:00.7]} 22. Kh1 {[%clk
0:03:43.5]} 22... Qh4 {[%clk 0:03:55.5]} 23. Qe1 {[%clk 0:03:41.4]} 23... Qd8
{[%clk 0:03:43.3]} 24. Ng4 {[%clk 0:03:35.8]} 24... f5 {[%clk 0:03:37]} 25. Ngf2
{[%clk 0:03:31.3]} 25... Bxf2 {[%clk 0:03:31]} 26. Qxf2 {[%clk 0:03:28.1]} 26...
fxe4 {[%clk 0:03:30.1]} 27. fxe4 {[%clk 0:03:26.3]} 27... Rf8 {[%clk 0:03:26.4]}
0-1

[Event "Live Chess"]
[Site "Chess.com"]
[Date "2024.06.02"]
[Round "-"]
[White "Inglaterra"]
[Black "GerardATHart"]
[Result "1-0"]
[WhiteElo "2061"]
[BlackElo "1377"]
[TimeControl "300"]
[EndTime "6:59:21 PDT"]
[Termination "Inglaterra won by checkmate"]

1. e4 {[%clk 0:04:57.4]} 1... e5 {[%clk 0:04:58.5]} 2. Nf3 {[%clk 0:04:56.6]}
2... Nc6 {[%clk 0:04:56.7]} 3. d4 {[%clk 0:04:55.4]} 3... exd4 {[%clk
0:04:54.8]} 4. Bc4 {[%clk 0:04:53.6]} 4... Bc5 {[%clk 0:04:51.8]} 5. O-O {[%clk
0:04:51.9]} 5... Nf6 {[%clk 0:04:46.7]} 6. e5 {[%clk 0:04:49.8]} 6... d5 {[%clk
0:04:30.4]} 7. exf6 {[%clk 0:04:47.7]} 7... dxc4 {[%clk 0:04:27.5]} 8. fxg7
{[%clk 0:04:46.3]} 8... Rg8 {[%clk 0:04:26.3]} 9. Re1+ {[%clk 0:04:44.8]} 9...
Be6 {[%clk 0:04:23.9]} 10. Ng5 {[%clk 0:04:38.4]} 10... Qd7 {[%clk 0:04:21.2]}
11. Nxe6 {[%clk 0:04:35.4]} 11... fxe6 {[%clk 0:04:20]} 12. Qh5+ {[%clk
0:04:34.3]} 12... Qf7 {[%clk 0:04:11.6]} 13. Qxc5 {[%clk 0:04:32.9]} 13... Qxg7
{[%clk 0:04:00.7]} 14. g3 {[%clk 0:04:21.7]} 14... O-O-O {[%clk 0:03:57.6]} 15.
Qxc4 {[%clk 0:04:15.1]} 15... Ne5 {[%clk 0:03:50.5]} 16. Qxe6+ {[%clk
0:04:09.8]} 16... Kb8 {[%clk 0:03:43.2]} 17. Qxe5 {[%clk 0:04:05.4]} 17... Rde8
{[%clk 0:03:37.6]} 18. Qxe8+ {[%clk 0:04:03.2]} 18... Rxe8 {[%clk 0:03:33.7]}
19. Rxe8# {[%clk 0:04:03.1]} 1-0

[Event "Live Chess"]
[Site "Chess.com"]
[Date "2024.06.02"]
[Round "-"]
[White "NottheBishopSacrifice"]
[Black "GoldsmanB"]
[Result "1-0"]
[WhiteElo "2333"]
[BlackElo "1101"]
[TimeControl "300"]
[EndTime "6:59:42 PDT"]
[Termination "NottheBishopSacrifice won by resignation"]

1. Nf3 {[%clk 0:04:58.4]} 1... d5 {[%clk 0:04:58.4]} 2. g3 {[%clk 0:04:58.3]}
2... Nc6 {[%clk 0:04:56.6]} 3. Bg2 {[%clk 0:04:57.7]} 3... Bg4 {[%clk
0:04:54.1]} 4. d4 {[%clk 0:04:55.9]} 4... Nf6 {[%clk 0:04:51.8]} 5. O-O {[%clk
0:04:54.8]} 5... e6 {[%clk 0:04:50.9]} 6. c4 {[%clk 0:04:53]} 6... Be7 {[%clk
0:04:45.9]} 7. Nc3 {[%clk 0:04:51.7]} 7... O-O {[%clk 0:04:43.2]} 8. b3 {[%clk
0:04:48.5]} 8... Bb4 {[%clk 0:04:39.1]} 9. Bb2 {[%clk 0:04:47.1]} 9... dxc4
{[%clk 0:04:36.7]} 10. bxc4 {[%clk 0:04:45.3]} 10... Bxf3 {[%clk 0:04:33.8]} 11.
Bxf3 {[%clk 0:04:43.9]} 11... Qxd4 {[%clk 0:04:31.5]} 12. Bxc6 {[%clk 0:04:34]}
12... Qxd1 {[%clk 0:04:28.3]} 13. Rfxd1 {[%clk 0:04:33.9]} 13... bxc6 {[%clk
0:04:27]} 14. Na4 {[%clk 0:04:31.2]} 14... Rad8 {[%clk 0:04:19.7]} 15. Be5
{[%clk 0:04:28.8]} 15... Rxd1+ {[%clk 0:04:16.5]} 16. Rxd1 {[%clk 0:04:25.5]}
16... Ba5 {[%clk 0:04:13.3]} 17. Bxf6 {[%clk 0:04:22.8]} 17... gxf6 {[%clk
0:04:12]} 18. Nc5 {[%clk 0:04:22.2]} 18... Bb6 {[%clk 0:04:08.5]} 19. Nd7 {[%clk
0:04:20.4]} 19... Re8 {[%clk 0:03:58.2]} 20. Nxf6+ {[%clk 0:04:16]} 1-0

[Event "Live Chess"]
[Site "Chess.com"]
[Date "2024.06.02"]
[Round "-"]
[White "bonantagulo"]
[Black "missedJariChance"]
[Result "1-0"]
[WhiteElo "2223"]
[BlackElo "1384"]
[TimeControl "300"]
[EndTime "6:59:44 PDT"]
[Termination "bonantagulo won by resignation"]

1. d4 {[%clk 0:04:55.2]} 1... d5 {[%clk 0:04:57.5]} 2. e4 {[%clk 0:04:53]} 2...
e6 {[%clk 0:04:55.5]} 3. e5 {[%clk 0:04:51.8]} 3... c5 {[%clk 0:04:54.2]} 4. c3
{[%clk 0:04:51.7]} 4... Nc6 {[%clk 0:04:52.1]} 5. Nf3 {[%clk 0:04:50.9]} 5...
Qb6 {[%clk 0:04:49.7]} 6. Bd3 {[%clk 0:04:49.3]} 6... Bd7 {[%clk 0:04:48.3]} 7.
dxc5 {[%clk 0:04:48.2]} 7... Bxc5 {[%clk 0:04:46.4]} 8. O-O {[%clk 0:04:48.1]}
8... Nge7 {[%clk 0:04:38.4]} 9. b4 {[%clk 0:04:44]} 9... Bxb4 {[%clk 0:04:15.6]}
10. cxb4 {[%clk 0:04:43.9]} 10... Nxb4 {[%clk 0:04:13.5]} 11. Ba3 {[%clk
0:04:41]} 11... Nbc6 {[%clk 0:04:10.5]} 12. Nc3 {[%clk 0:04:33.5]} 12... O-O
{[%clk 0:04:09.3]} 13. Rb1 {[%clk 0:04:31.7]} 13... Qc7 {[%clk 0:04:07.1]} 14.
Nb5 {[%clk 0:04:27.7]} 14... Qd8 {[%clk 0:04:05.4]} 15. Nd6 {[%clk 0:04:26.3]}
15... Rb8 {[%clk 0:03:55.4]} 16. Re1 {[%clk 0:04:21.6]} 16... Ng6 {[%clk
0:03:50.4]} 17. Nxb7 {[%clk 0:04:18.9]} 1-0

[Event "Live Chess"]
[Site "Chess.com"]
[Date "2024.06.02"]
[Round "-"]
[White "imchessive"]
[Black "Crowded_House"]
[Result "0-1"]
[WhiteElo "1587"]
[BlackElo "1638"]
[TimeControl "300"]
[EndTime "7:00:07 PDT"]
[Termination "Crowded_House won by checkmate"]

1. d4 {[%clk 0:04:58.8]} 1... e6 {[%clk 0:04:55.2]} 2. c4 {[%clk 0:04:57.9]}
2... d5 {[%clk 0:04:53.8]} 3. g3 {[%clk 0:04:56.9]} 3... dxc4 {[%clk 0:04:50.9]}
4. Qa4+ {[%clk 0:04:56]} 4... Bd7 {[%clk 0:04:47.2]} 5. Qxc4 {[%clk 0:04:55.3]}
5... Nc6 {[%clk 0:04:46.5]} 6. Bg2 {[%clk 0:04:54.2]} 6... Nf6 {[%clk
0:04:40.5]} 7. Bf4 {[%clk 0:04:52.2]} 7... Be7 {[%clk 0:04:38.4]} 8. Nc3 {[%clk
0:04:44.4]} 8... a6 {[%clk 0:04:35.9]} 9. d5 {[%clk 0:04:40.8]} 9... exd5 {[%clk
0:04:34.4]} 10. Nxd5 {[%clk 0:04:34.3]} 10... Nxd5 {[%clk 0:04:29.2]} 11. Bxd5
{[%clk 0:04:30.9]} 11... O-O {[%clk 0:04:23.5]} 12. a3 {[%clk 0:04:16.7]} 12...
Bd6 {[%clk 0:03:54.6]} 13. Bxd6 {[%clk 0:04:13.8]} 13... cxd6 {[%clk 0:03:53.9]}
14. Nf3 {[%clk 0:04:05.5]} 14... Qb6 {[%clk 0:03:52.5]} 15. b4 {[%clk
0:03:57.5]} 15... Ne5 {[%clk 0:03:42.6]} 16. Nxe5 {[%clk 0:03:48.7]} 16... dxe5
{[%clk 0:03:42]} 17. O-O {[%clk 0:03:46.6]} 17... Rac8 {[%clk 0:03:41.1]} 18.
Qb3 {[%clk 0:03:40.7]} 18... Bb5 {[%clk 0:03:40]} 19. Rfe1 {[%clk 0:03:30.3]}
19... Qc7 {[%clk 0:03:37.9]} 20. Rac1 {[%clk 0:03:21.9]} 20... Qd7 {[%clk
0:03:34]} 21. Rxc8 {[%clk 0:03:17.2]} 21... Qxc8 {[%clk 0:03:29.4]} 22. e4
{[%clk 0:03:01.2]} 22... Qc7 {[%clk 0:03:19.8]} 23. Re3 {[%clk 0:02:43]} 23...
Qc1+ {[%clk 0:03:03.2]} 24. Kg2 {[%clk 0:02:40.9]} 24... Qf1+ {[%clk 0:02:57.3]}
25. Kf3 {[%clk 0:02:37.3]} 25... Qh1+ {[%clk 0:02:56.1]} 26. Kg4 {[%clk
0:02:31.7]} 26... Bd7+ {[%clk 0:02:44.5]} 27. Kg5 {[%clk 0:02:17.7]} 27... h6+
{[%clk 0:02:39.5]} 28. Kh5 {[%clk 0:02:04.9]} 28... Qxh2# {[%clk 0:02:38.7]} 0-1

[Event "Live Chess"]
[Site "Chess.com"]
[Date "2024.06.02"]
[Round "-"]
[White "Ninifu"]
[Black "Queensandpawns"]
[Result "0-1"]
[WhiteElo "2004"]
[BlackElo "2297"]
[TimeControl "300"]
[EndTime "7:00:10 PDT"]
[Termination "Queensandpawns won on time"]

1. d4 {[%clk 0:04:53.3]} 1... e5 {[%clk 0:04:57]} 2. dxe5 {[%clk 0:04:51.5]}
2... Bc5 {[%clk 0:04:56.6]} 3. Nf3 {[%clk 0:04:46.9]} 3... d6 {[%clk 0:04:55.9]}
4. e3 {[%clk 0:04:43.8]} 4... Ne7 {[%clk 0:04:55.8]} 5. Bd3 {[%clk 0:04:39.3]}
5... Nbc6 {[%clk 0:04:53.8]} 6. exd6 {[%clk 0:04:36.8]} 6... Bxd6 {[%clk
0:04:53.7]} 7. O-O {[%clk 0:04:36.1]} 7... O-O {[%clk 0:04:50.2]} 8. Nc3 {[%clk
0:04:15.4]} 8... Ng6 {[%clk 0:04:42]} 9. b3 {[%clk 0:04:10.1]} 9... Bg4 {[%clk
0:04:03]} 10. Bb2 {[%clk 0:04:08.4]} 10... Nce5 {[%clk 0:04:01.5]} 11. Be2
{[%clk 0:04:04.1]} 11... Nxf3+ {[%clk 0:04:00.2]} 12. Bxf3 {[%clk 0:04:02.9]}
12... Qh4 {[%clk 0:03:56.1]} 13. g3 {[%clk 0:03:49.5]} 13... Bxf3 {[%clk
0:03:53]} 14. Qxf3 {[%clk 0:03:45.3]} 14... Qh3 {[%clk 0:03:51.7]} 15. Ne4
{[%clk 0:03:35.7]} 15... Nh4 {[%clk 0:03:47.5]} 16. Qh1 {[%clk 0:03:16.5]} 16...
Qg4 {[%clk 0:03:36.1]} 17. f3 {[%clk 0:02:31.4]} 17... Qg6 {[%clk 0:03:30.5]}
18. Kf2 {[%clk 0:02:26.6]} 18... Nf5 {[%clk 0:03:24.3]} 19. h4 {[%clk
0:02:17.2]} 19... Bxg3+ {[%clk 0:03:11.9]} 20. Ke2 {[%clk 0:02:04.7]} 20... Qa6+
{[%clk 0:02:58]} 21. c4 {[%clk 0:02:02.7]} 21... Qb6 {[%clk 0:02:44.8]} 22. Bd4
{[%clk 0:01:31.7]} 22... Nxd4+ {[%clk 0:02:42]} 23. exd4 {[%clk 0:01:30.1]}
23... Qxd4 {[%clk 0:02:41.9]} 24. Nxg3 {[%clk 0:01:28.1]} 24... f5 {[%clk
0:02:39.1]} 25. f4 {[%clk 0:01:06.9]} 25... Rfe8+ {[%clk 0:02:25.9]} 26. Kf3
{[%clk 0:01:04.9]} 26... Qd2 {[%clk 0:02:12.6]} 27. Rae1 {[%clk 0:00:48.1]}
27... Rad8 {[%clk 0:02:09.7]} 28. Rxe8+ {[%clk 0:00:44.2]} 28... Rxe8 {[%clk
0:02:09.6]} 29. Rf2 {[%clk 0:00:35.3]} 29... Qc3+ {[%clk 0:01:47]} 30. Kg2
{[%clk 0:00:32.5]} 30... Re3 {[%clk 0:01:46.9]} 31. Qh3 {[%clk 0:00:27.2]} 31...
g6 {[%clk 0:01:32]} 32. h5 {[%clk 0:00:25.1]} 32... Qc1 {[%clk 0:01:27.7]} 33.
hxg6 {[%clk 0:00:20.8]} 33... hxg6 {[%clk 0:01:27.6]} 34. Qh4 {[%clk 0:00:18.9]}
34... Re1 {[%clk 0:01:24.1]} 35. Qd8+ {[%clk 0:00:15.1]} 35... Kg7 {[%clk
0:01:22.9]} 36. Qd7+ {[%clk 0:00:13.6]} 36... Kf8 {[%clk 0:01:21]} 37. Qd8+
{[%clk 0:00:12.3]} 37... Kf7 {[%clk 0:01:20.2]} 38. Qd7+ {[%clk 0:00:10.3]}
38... Re7 {[%clk 0:01:19.7]} 39. Qd5+ {[%clk 0:00:08.3]} 39... Ke8 {[%clk
0:01:19.3]} 40. Rd2 {[%clk 0:00:05.9]} 40... Qxd2+ {[%clk 0:01:12]} 41. Qxd2
{[%clk 0:00:04.4]} 41... c6 {[%clk 0:01:11.9]} 42. Qd6 {[%clk 0:00:02.1]} 42...
Rd7 {[%clk 0:01:11.8]} 43. Qxg6+ {[%clk 0:00:00.9]} 43... Kd8 {[%clk 0:01:11.7]}
0-1

[Event "Live Chess"]
[Site "Chess.com"]
[Date "2024.06.02"]
[Round "-"]
[White "Mikhail_Golubev"]
[Black "gobbles19"]
[Result "1-0"]
[WhiteElo "2492"]
[BlackElo "2199"]
[TimeControl "300"]
[EndTime "7:00:28 PDT"]
[Termination "Mikhail_Golubev won by resignation"]

1. e4 {[%clk 0:04:52.6]} 1... Nf6 {[%clk 0:04:57.7]} 2. e5 {[%clk 0:04:50.8]}
2... Nd5 {[%clk 0:04:55.8]} 3. d4 {[%clk 0:04:50.2]} 3... d6 {[%clk 0:04:53.6]}
4. Nf3 {[%clk 0:04:49.1]} 4... g6 {[%clk 0:04:52.3]} 5. Bc4 {[%clk 0:04:47.9]}
5... Nb6 {[%clk 0:04:50.9]} 6. Bb3 {[%clk 0:04:46.7]} 6... Bg7 {[%clk
0:04:49.9]} 7. Ng5 {[%clk 0:04:36.4]} 7... e6 {[%clk 0:04:44.1]} 8. Qf3 {[%clk
0:04:22.2]} 8... Qe7 {[%clk 0:04:05.1]} 9. Ne4 {[%clk 0:04:07]} 9... dxe5 {[%clk
0:03:50.4]} 10. Bg5 {[%clk 0:02:49.3]} 10... f6 {[%clk 0:03:46.1]} 11. Nxf6+
{[%clk 0:02:44]} 11... Bxf6 {[%clk 0:03:44.8]} 12. Bxf6 {[%clk 0:02:42.8]} 12...
Rf8 {[%clk 0:03:36.6]} 13. Bxe7 {[%clk 0:02:33.3]} 13... Rxf3 {[%clk 0:03:35.4]}
14. gxf3 {[%clk 0:02:33.2]} 14... Kxe7 {[%clk 0:03:34.7]} 15. dxe5 {[%clk
0:02:32.4]} 15... N8d7 {[%clk 0:03:32.6]} 16. f4 {[%clk 0:02:31.4]} 16... Nc5
{[%clk 0:03:31.3]} 17. Nc3 {[%clk 0:02:29.2]} 17... Bd7 {[%clk 0:03:29.2]} 18.
O-O-O {[%clk 0:02:27.5]} 18... Rf8 {[%clk 0:03:27.3]} 19. Rd4 {[%clk 0:02:26]}
19... Bc6 {[%clk 0:03:22.9]} 20. Rg1 {[%clk 0:02:21.5]} 20... Nxb3+ {[%clk
0:03:20.9]} 21. axb3 {[%clk 0:02:19.7]} 21... a6 {[%clk 0:03:10.5]} 22. h4
{[%clk 0:02:16]} 22... Bf3 {[%clk 0:03:08]} 23. Rg3 {[%clk 0:02:12]} 23... c5
{[%clk 0:03:00.9]} 24. Rd6 {[%clk 0:02:07.8]} 24... Bc6 {[%clk 0:02:59.9]} 25.
h5 {[%clk 0:01:27.7]} 25... Rxf4 {[%clk 0:02:57.1]} 26. hxg6 {[%clk 0:01:24.7]}
26... hxg6 {[%clk 0:02:57]} 27. Rxg6 {[%clk 0:01:23.2]} 27... Rxf2 {[%clk
0:02:49.8]} 28. Rgxe6+ {[%clk 0:01:20.1]} 28... Kf7 {[%clk 0:02:47.7]} 29. Rf6+
{[%clk 0:01:18.8]} 29... Rxf6 {[%clk 0:02:46.5]} 30. Rxf6+ {[%clk 0:01:18.7]}
30... Ke7 {[%clk 0:02:44.9]} 31. Rd6 {[%clk 0:01:01.8]} 31... Nd7 {[%clk
0:02:41.5]} 32. Nd5+ {[%clk 0:01:00.7]} 32... Bxd5 {[%clk 0:02:33.6]} 33. Rxd5
{[%clk 0:01:00.6]} 33... b6 {[%clk 0:02:25.2]} 34. Kd2 {[%clk 0:00:58.9]} 34...
Nb8 {[%clk 0:02:22.3]} 35. Rd6 {[%clk 0:00:56.5]} 35... Nd7 {[%clk 0:02:21.6]}
36. Rxd7+ {[%clk 0:00:54.3]} 36... Kxd7 {[%clk 0:02:20.6]} 37. Kd3 {[%clk
0:00:50.6]} 37... Ke6 {[%clk 0:02:19.1]} 38. Ke4 {[%clk 0:00:48.7]} 38... b5
{[%clk 0:02:17.3]} 39. c4 {[%clk 0:00:47.4]} 39... b4 {[%clk 0:02:13.3]} 40. Kf4
{[%clk 0:00:46.5]} 40... a5 {[%clk 0:02:11.4]} 41. Ke4 {[%clk 0:00:45.4]} 1-0